bitfinex/quotes_BTCUSD_20210402
["timestamp","ask_amount","ask_price","bid_price","bid_amount"]
[1617395465078,0.0057208,58735.0,58733.0,0.0162]
[1617395466882,0.0057208,58735.0,58733.0,0.0112]
[1617395467085,0.0057208,58735.0,58733.0,0.21377288]
[1617395467288,0.0057208,58735.0,58734.0,0.4]
[1617395467487,0.0057208,58735.0,58734.0,0.87582]
[1617395468286,0.0057208,58735.0,58734.0,0.97582]
[1617395468484,0.0057208,58735.0,58734.0,0.87582]
[1617395469314,0.0057208,58735.0,58734.0,0.954678]
[1617395471529,0.0057208,58735.0,58734.0,0.949678]
[1617395473330,0.0057208,58735.0,58734.0,0.87082]
[1617395473331,0.0007208,58735.0,58734.0,0.87082]
[1617395473733,0.00825605,58735.0,58734.0,0.87082]
[1617395474356,0.00825605,58735.0,58734.0,3.27082]
[1617395474557,0.00825605,58735.0,58734.0,3.349676]
[1617395475756,0.00825605,58735.0,58734.0,0.949676]
[1617395476156,0.00825605,58735.0,58734.0,1.809676]
[1617395476557,0.00825605,58735.0,58734.0,1.971676]
[1617395476787,0.01325605,58735.0,58734.0,1.971676]
[1617395477185,0.01325605,58735.0,58734.0,4.991676]
[1617395478186,5.605e-05,58735.0,58734.0,5.991676]
[1617395478390,2.0,58737.0,58736.0,0.19158621]
[1617395478391,1.63245605,58737.0,58736.0,0.19158621]
[1617395478587,1.63245605,58737.0,58736.0,3.82778621]
[1617395478827,0.77185605,58737.0,58736.0,7.29657714]
[1617395479030,0.0004,58751.0,58737.0,0.49]
[1617395479236,0.0004,58751.0,58738.0,1.81199093]
[1617395479237,8.75e-06,58739.0,58738.0,1.81199093]
[1617395479426,8.75e-06,58739.0,58738.0,3.44083893]
[1617395479629,0.03891286,58766.0,58740.0,0.10579093]
[1617395479828,0.03891286,58766.0,58753.0,0.255187]
[1617395480031,0.03893258,58768.0,58757.0,0.078796]
[1617395480228,0.08549254,58765.0,58759.0,0.1]
[1617395480429,0.03893774,58769.0,58763.0,0.078785]
[1617395480633,0.03893774,58769.0,58764.0,0.0112]
[1617395480826,0.03893774,58769.0,58765.0,0.078777]
[1617395481027,0.03393774,58769.0,58766.0,0.0112]
[1617395481228,0.08544657,58768.0,58767.0,0.228773]
[1617395481428,0.07424657,58768.0,58767.0,0.228773]
[1617395481627,0.07424657,58768.0,58767.0,0.22696]
[1617395481826,0.05841488,58776.0,58767.0,0.22696]
[1617395481827,0.05841488,58776.0,58767.0,2.14696]
[1617395482034,0.05841488,58776.0,58767.0,0.078773]
[1617395482233,0.05841488,58776.0,58765.0,0.36438]
[1617395482634,0.06413202,58776.0,58765.0,0.36438]
[1617395482835,0.08478817,58775.0,58765.0,0.36438]
[1617395483241,1.06688374,58775.0,58764.0,0.372105]
[1617395483437,0.98209557,58774.0,58764.0,0.255185]
[1617395483644,1.65988726,58774.0,58760.0,0.00300781]
[1617395483839,0.19692397,58772.0,58759.0,0.00300781]
[1617395484040,0.08464014,58772.0,58758.0,0.390246]
[1617395484436,0.08464014,58772.0,58759.0,0.08179481]
[1617395484674,0.08474911,58774.0,58759.0,0.08179481]
[1617395484871,0.98209557,58772.0,58759.0,0.00300781]
[1617395485073,0.0042,58771.0,58755.0,0.00300781]
[1617395485272,1.07105764,58771.0,58755.0,0.00300781]
[1617395485674,0.08476758,58769.0,58755.0,0.00300781]
[1617395485876,0.08476758,58769.0,58756.0,0.078791]
[1617395486075,0.0042,58771.0,58761.0,0.255199]
[1617395486076,0.08476906,58770.0,58761.0,0.255199]
[1617395486275,0.08476906,58770.0,58762.0,0.078782]
[1617395486678,0.08481521,58775.0,58761.0,0.255199]
[1617395486875,0.08481592,58769.0,58761.0,0.255199]
[1617395487279,0.08481513,58773.0,58761.0,0.255199]
[1617395487479,0.08480403,58768.0,58761.0,0.255199]
[1617395487679,1.06690709,58772.0,58756.0,0.00300781]
[1617395487880,0.08480783,58767.0,58756.0,0.00300781]
[1617395488084,0.08480352,58771.0,58757.0,0.07879]
[1617395488281,0.08480419,58773.0,58758.0,0.00300781]
[1617395488485,0.9878134,58772.0,58758.0,0.00300781]
[1617395488684,0.0042,58770.0,58755.0,0.00300781]
[1617395488881,0.98629557,58770.0,58755.0,0.00300781]
[1617395489279,0.08451892,58769.0,58755.0,0.00300781]
[1617395489480,0.08451892,58769.0,58756.0,0.078795]
[1617395489681,0.08451892,58769.0,58757.0,0.00300781]
[1617395489934,0.08451892,58769.0,58758.0,0.078791]
[1617395490131,0.08451892,58769.0,58758.0,0.333996]
[1617395490333,1.06661449,58769.0,58758.0,0.333996]
[1617395490534,1.06661449,58769.0,58755.0,0.00300781]
[1617395490737,1.10661449,58769.0,58755.0,0.00300781]
[1617395490934,0.08455802,58768.0,58755.0,0.00300781]
[1617395491138,0.08455802,58768.0,58756.0,0.078795]
[1617395491337,0.98209557,58767.0,58757.0,0.00300781]
[1617395491539,0.04,58766.0,58757.0,0.035]
[1617395491738,1.37008357,58765.0,58755.0,0.035]
[1617395491936,1.02209557,58764.0,58755.0,0.035]
[1617395492137,0.47245852,58763.0,58755.0,0.035]
[1617395492334,0.08447052,58763.0,58755.0,0.035]
[1617395492536,0.0844567,58762.0,58756.0,0.078798]
[1617395492737,0.98209557,58762.0,58757.0,0.035]
[1617395492936,0.47243747,58761.0,58757.0,0.035]
[1617395493135,0.72243747,58761.0,58757.0,0.035]
[1617395493335,0.637988,58761.0,58757.0,0.035]
[1617395493965,0.677988,58761.0,58757.0,0.035]
[1617395494164,0.427988,58761.0,58757.0,0.035]
[1617395494564,0.255252,58763.0,58757.0,0.035]
[1617395494765,0.004,58765.0,58757.0,0.035]
[1617395494965,0.004,58770.0,58758.0,0.078795]
[1617395495183,0.255226,58769.0,58759.0,0.035]
[1617395495384,0.33976384,58769.0,58759.0,0.035]
[1617395495584,0.00571834,58761.0,58759.0,0.035]
[1617395495783,0.00571834,58761.0,58760.0,0.17568759]
[1617395495985,0.00071834,58761.0,58760.0,0.21068759]
[1617395496184,0.08534789,58761.0,58760.0,0.21068759]
[1617395496384,0.00071834,58761.0,58760.0,0.21068759]
[1617395496583,0.08536869,58761.0,58760.0,0.21068759]
[1617395496782,0.00071834,58761.0,58760.0,0.21068759]
[1617395496984,0.08536935,58761.0,58760.0,0.21068759]
[1617395497182,0.08536935,58761.0,58760.0,0.113787]
[1617395497785,0.08536935,58761.0,58760.0,0.522207]
[1617395497985,0.08536935,58761.0,58760.0,0.622207]
[1617395498386,0.08536935,58761.0,58760.0,0.72237665]
[1617395498586,0.08536935,58761.0,58760.0,0.622207]
[1617395499586,0.08536935,58761.0,58760.0,0.777207]
[1617395499790,0.08536935,58761.0,58760.0,0.61998266]
[1617395500190,0.08536935,58761.0,58760.0,0.21156266]
[1617395500409,0.08536935,58761.0,58760.0,0.11156266]
[1617395501612,0.0903693,58761.0,58760.0,0.11156266]
[1617395502011,0.6503693,58761.0,58760.0,0.11156266]
[1617395502210,0.6503693,58761.0,58760.0,0.035]
[1617395502408,0.6503693,58761.0,58754.0,0.035]
[1617395502611,0.14309172,58760.0,58755.0,0.076576]
[1617395502809,0.14309172,58760.0,58756.0,0.035]
[1617395503432,0.05863272,58759.0,58756.0,0.035]
[1617395503635,0.14310462,58759.0,58756.0,0.035]
[1617395504034,0.08448919,58760.0,58756.0,0.035]
[1617395504633,0.08448919,58760.0,58757.0,0.076575]
[1617395504834,0.08448919,58760.0,58758.0,0.035]
[1617395505036,0.08448919,58760.0,58759.0,2.206571]
[1617395505235,0.08448919,58760.0,58759.0,2.241571]
[1617395506270,0.08448919,58760.0,58759.0,2.341571]
[1617395506467,0.08448919,58760.0,58759.0,2.646749]
[1617395506870,0.08448919,58760.0,58759.0,4.126749]
[1617395507464,0.08448919,58760.0,58759.0,4.289749]
[1617395507866,0.08448919,58760.0,58759.0,2.809749]
[1617395508064,0.08448919,58760.0,58759.0,2.646749]
[1617395508290,0.08448919,58760.0,58759.0,2.641749]
[1617395508895,0.08448919,58760.0,58759.0,2.496749]
[1617395509297,0.00571829,58761.0,58759.0,2.496749]
[1617395509499,0.00571829,58761.0,58760.0,0.21538376]
[1617395509703,0.00571829,58761.0,58760.0,0.68415376]
[1617395510298,0.09037755,58761.0,58760.0,0.78415376]
[1617395510497,0.00571829,58761.0,58760.0,0.78415376]
[1617395514142,0.00571829,58761.0,58760.0,1.88415376]
[1617395514745,0.00571829,58761.0,58760.0,2.65915376]
[1617395515344,0.00071829,58761.0,58760.0,2.65915376]
[1617395515742,0.00071829,58761.0,58760.0,2.74821225]
[1617395517565,0.00071829,58761.0,58760.0,2.91221225]
[1617395517965,0.95,58768.0,58760.0,2.91221225]
[1617395518166,0.95,58768.0,58764.0,0.331701]
[1617395518368,0.85675,58768.0,58767.0,3.686552]
[1617395518571,0.85675,58768.0,58767.0,0.18234293]
[1617395518789,0.85675,58768.0,58767.0,0.15]
[1617395519187,0.85675,58768.0,58767.0,0.1]
[1617395519789,0.85675,58768.0,58767.0,1.015]
[1617395519994,0.85675,58768.0,58767.0,3.43]
[1617395519995,0.85175,58768.0,58767.0,3.43]
[1617395520190,0.85175,58768.0,58767.0,3.53579093]
[1617395520391,0.85175,58768.0,58767.0,1.36579093]
[1617395520591,0.85175,58768.0,58767.0,1.58426]
[1617395520792,0.85175,58768.0,58767.0,2.47426]
[1617395520993,0.85175,58768.0,58767.0,2.58005093]
[1617395521615,0.85175,58768.0,58767.0,2.48005093]
[1617395522215,0.7585,58768.0,58767.0,4.32005093]
[1617395522416,0.7585,58768.0,58767.0,4.42005093]
[1617395522619,0.7585,58768.0,58767.0,2.58005093]
[1617395522818,0.7585,58768.0,58767.0,3.77005093]
[1617395523016,0.7585,58768.0,58767.0,2.58005093]
[1617395524060,0.7585,58768.0,58767.0,3.08005093]
[1617395524448,0.7585,58768.0,58767.0,2.08426]
[1617395524649,0.7585,58768.0,58767.0,2.80426]
[1617395524850,0.7585,58768.0,58767.0,2.91005093]
[1617395525050,0.7585,58768.0,58767.0,2.80426]
[1617395525251,0.7585,58768.0,58767.0,2.08426]
[1617395525450,0.7585,58768.0,58767.0,2.07926]
[1617395525654,0.7585,58768.0,58767.0,3.19926]
[1617395525852,0.7585,58768.0,58767.0,3.30505093]
[1617395527059,0.7585,58768.0,58767.0,3.19926]
[1617395527260,0.6865,58768.0,58767.0,4.90926]
[1617395527461,0.6865,58768.0,58767.0,3.30505093]
[1617395527862,0.6865,58768.0,58767.0,2.17926]
[1617395528260,0.6865,58768.0,58767.0,2.28505093]
[1617395528659,0.6865,58768.0,58767.0,3.40505093]
[1617395528860,0.6865,58768.0,58767.0,2.28505093]
[1617395529061,0.6865,58768.0,58767.0,2.17926]
[1617395530689,0.6865,58768.0,58767.0,3.29926]
[1617395530893,0.6865,58768.0,58767.0,3.40505093]
[1617395531691,0.6865,58768.0,58767.0,3.49410942]
[1617395531922,0.6865,58768.0,58767.0,3.98410942]
[1617395532123,0.6865,58768.0,58767.0,3.78410942]
[1617395532322,0.6865,58768.0,58767.0,3.54410942]
[1617395532521,0.6865,58768.0,58767.0,3.78410942]
[1617395532721,0.6865,58768.0,58767.0,4.03410942]
[1617395533322,0.6865,58768.0,58767.0,2.91410942]
[1617395533524,0.6865,58768.0,58767.0,5.21210942]
[1617395533725,0.6865,58768.0,58767.0,6.21210942]
[1617395533926,0.0001,58768.0,58767.0,6.51210942]
[1617395534130,0.22881014,58784.0,58768.0,0.59]
[1617395534326,0.22881014,58784.0,58769.0,1.33]
[1617395534542,0.22881014,58784.0,58783.0,3.43416566]
[1617395534543,0.0002,58784.0,58783.0,3.43416566]
[1617395534744,0.0002,58784.0,58783.0,4.05671659]
[1617395534943,0.0002,58784.0,58783.0,4.81171659]
[1617395535542,0.0002,58784.0,58783.0,5.31171659]
[1617395535745,0.0002,58784.0,58783.0,5.56679259]
[1617395536142,0.0002,58784.0,58783.0,6.31579259]
[1617395540503,0.00978972,58784.0,58783.0,6.31579259]
[1617395540703,0.00978972,58784.0,58783.0,5.81579259]
[1617395540909,1.89754184,58788.0,58785.0,0.00346028]
[1617395541107,1.89754184,58788.0,58786.0,0.51]
[1617395541302,1.89754184,58788.0,58787.0,3.52]
[1617395541504,1.89754184,58788.0,58787.0,3.62579093]
[1617395541903,1.89254184,58788.0,58787.0,4.58079093]
[1617395542106,1.87754184,58788.0,58787.0,6.33179093]
[1617395542320,1.87300813,58788.0,58787.0,6.33179093]
[1617395542515,1.87300813,58788.0,58787.0,6.83179093]
[1617395542716,1.87300813,58788.0,58787.0,6.92084942]
[1617395543314,1.87300813,58788.0,58787.0,7.08146719]
[1617395544315,0.49730813,58788.0,58787.0,7.08146719]
[1617395544518,0.49730813,58788.0,58787.0,7.58146719]
[1617395544718,0.49730813,58788.0,58787.0,7.25984942]
[1617395545148,0.49730813,58788.0,58787.0,6.75984942]
[1617395545748,0.49483658,58788.0,58787.0,6.75984942]
[1617395546151,0.49483658,58788.0,58787.0,6.25984942]
[1617395546547,0.49483658,58788.0,58787.0,6.75984942]
[1617395547148,0.49483658,58788.0,58787.0,6.01405849]
[1617395547570,0.48483658,58788.0,58787.0,5.51405849]
[1617395547973,0.48483658,58788.0,58787.0,5.67805849]
[1617395548172,0.48483658,58788.0,58787.0,5.10896604]
[1617395548371,0.48483658,58788.0,58787.0,5.20896604]
[1617395548570,0.48483658,58788.0,58787.0,5.25896604]
[1617395549171,0.48483658,58788.0,58787.0,5.44896604]
[1617395549771,0.48483658,58788.0,58787.0,5.94896604]
[1617395550987,0.48483658,58788.0,58787.0,6.52648604]
[1617395551186,0.48483658,58788.0,58787.0,6.60099604]
[1617395551390,0.4829184,58788.0,58787.0,6.60099604]
[1617395551591,0.4829184,58788.0,58787.0,6.11099604]
[1617395553030,0.4602668,58788.0,58787.0,6.90123699]
[1617395553230,0.40007052,58788.0,58787.0,6.90123699]
[1617395553429,0.36611335,58788.0,58787.0,6.14032944]
[1617395553629,0.339888,58788.0,58787.0,7.62032944]
[1617395554056,0.98209557,58819.0,58790.0,0.06799266]
[1617395554249,0.0048,58815.0,58803.0,0.25798081]
[1617395554450,0.0048,58815.0,58804.0,0.00300781]
[1617395554650,0.0048,58815.0,58805.0,0.205]
[1617395554847,0.0048,58815.0,58806.0,0.00300781]
[1617395555247,0.0048,58815.0,58808.0,0.31884862]
[1617395555666,0.9814,58825.0,58809.0,0.4310693]
[1617395555865,0.0044,58823.0,58809.0,0.43407711]
[1617395556065,0.04,58821.0,58809.0,0.68905011]
[1617395556265,0.98209557,58820.0,58810.0,0.14]
[1617395556464,0.04,58819.0,58810.0,0.14]
[1617395556669,0.98209557,58818.0,58810.0,0.14]
[1617395556868,1.02409557,58818.0,58811.0,0.165]
[1617395557065,0.98209557,58817.0,58811.0,0.165]
[1617395557267,0.98409557,58817.0,58809.0,0.1]
[1617395557465,0.98209557,58816.0,58809.0,0.1]
[1617395557666,0.387972,58815.0,58809.0,0.1]
[1617395557867,0.98209557,58814.0,58809.0,0.1]
[1617395558067,0.387972,58813.0,58811.0,0.254964]
[1617395558268,1.99209557,58812.0,58811.0,0.254964]
[1617395558470,2.38006757,58812.0,58811.0,0.254964]
[1617395558870,2.38006757,58812.0,58804.0,0.14]
[1617395559068,2.38006757,58812.0,58803.0,0.1]
[1617395559069,1.37006757,58811.0,58803.0,0.1]
[1617395559272,0.98209557,58810.0,58802.0,0.339964]
[1617395559470,0.46947793,58809.0,58802.0,0.339964]
[1617395559670,0.04,58807.0,58800.0,0.01325]
[1617395559870,1.37006757,58806.0,58800.0,0.01325]
[1617395560069,1.02209557,58805.0,58800.0,0.01325]
[1617395560268,1.45151268,58804.0,58800.0,0.01325]
[1617395560470,0.08144329,58803.0,58800.0,0.01325]
[1617395560895,0.387972,58802.0,58800.0,0.01325]
[1617395561294,2.14144249,58801.0,58800.0,0.01325]
[1617395561493,0.46941449,58801.0,58800.0,0.01325]
[1617395561694,0.08144036,58802.0,58800.0,0.01325]
[1617395561896,0.08143912,58804.0,58800.0,0.01325]
[1617395562092,1.37006757,58803.0,58800.0,0.01325]
[1617395562294,0.30144457,58802.0,58800.0,0.01325]
[1617395562495,0.08144457,58802.0,58800.0,0.01325]
[1617395562701,0.08143138,58801.0,58800.0,0.01325]
[1617395563313,0.08148579,58807.0,58800.0,0.01325]
[1617395563513,0.08148579,58807.0,58800.0,0.47605]
[1617395563713,0.08149458,58810.0,58801.0,0.15]
[1617395564118,0.08149458,58810.0,58805.0,0.254997]
[1617395565315,0.22642202,58810.0,58805.0,0.254997]
[1617395565514,0.22142202,58810.0,58805.0,0.254997]
[1617395565716,0.0814801,58809.0,58805.0,0.254997]
[1617395566542,0.22640754,58809.0,58805.0,0.254997]
[1617395566942,0.0813821,58808.0,58805.0,0.254997]
[1617395567942,0.12137611,58812.0,58805.0,0.254997]
[1617395568345,0.08137088,58811.0,58805.0,0.254997]
[1617395568573,0.04,58810.0,58805.0,0.254997]
[1617395568772,0.12136596,58810.0,58805.0,0.254997]
[1617395569196,0.08136439,58809.0,58805.0,0.254997]
[1617395569604,0.08136439,58809.0,58806.0,1.1]
[1617395569803,0.08136401,58814.0,58808.0,0.2160693]
[1617395570000,0.14492744,58815.0,58808.0,0.2160693]
[1617395570196,0.14492744,58815.0,58809.0,0.38]
[1617395570398,0.14492744,58815.0,58809.0,0.68]
[1617395570597,0.14492744,58815.0,58810.0,0.475]
[1617395570598,0.08135607,58814.0,58810.0,0.475]
[1617395570797,0.08135607,58814.0,58810.0,0.575]
[1617395570999,0.05952858,58811.0,58810.0,0.575]
[1617395571212,0.05952858,58811.0,58810.0,0.1]
[1617395571613,0.15872141,58822.0,58810.0,0.2]
[1617395571815,0.14078824,58811.0,58810.0,0.1]
[1617395572016,0.0595261,58811.0,58810.0,0.1]
[1617395572416,0.08126286,58811.0,58810.0,0.1]
[1617395572614,0.05953209,58811.0,58810.0,0.1]
[1617395573015,0.05953209,58811.0,58810.0,0.439917]
[1617395573216,0.05953209,58811.0,58810.0,1.334917]
[1617395573414,0.05953209,58811.0,58810.0,0.704917]
[1617395574020,0.14492744,58822.0,58810.0,0.704917]
[1617395574221,0.14492744,58822.0,58811.0,0.415]
[1617395574420,0.14692744,58822.0,58811.0,0.415]
[1617395574619,0.14692744,58822.0,58812.0,0.1]
[1617395575023,0.002,58822.0,58812.0,0.1]
[1617395575822,0.00296912,58813.0,58812.0,0.1]
[1617395576221,0.98209557,58822.0,58812.0,0.355]
[1617395576439,0.427972,58821.0,58812.0,0.355]
[1617395576638,0.98209557,58820.0,58812.0,0.1]
[1617395576838,0.427972,58819.0,58812.0,0.1]
[1617395577038,0.51102635,58819.0,58812.0,0.1]
[1617395577236,0.08106051,58818.0,58809.0,0.1]
[1617395577441,0.08306051,58818.0,58809.0,0.1]
[1617395577641,0.00296854,58810.0,58808.0,0.3399]
[1617395577837,0.00296854,58810.0,58809.0,2.76300781]
[1617395578037,0.00296854,58810.0,58809.0,3.98878]
[1617395578237,0.00296912,58812.0,58810.0,0.2160693]
[1617395578640,0.00296912,58812.0,58810.0,0.3160693]
[1617395578841,0.00296984,58813.0,58810.0,0.3160693]
[1617395579065,0.00296984,58813.0,58811.0,0.74]
[1617395579269,0.00296984,58813.0,58812.0,3.759925]
[1617395579467,0.0042,58823.0,58813.0,0.2160693]
[1617395579670,0.00297211,58816.0,58814.0,0.37]
[1617395579868,0.00497211,58816.0,58814.0,0.37]
[1617395580068,0.00497211,58816.0,58815.0,1.63]
[1617395580272,0.002,58816.0,58812.0,0.339925]
[1617395580667,0.00297191,58815.0,58812.0,0.339925]
[1617395580868,0.0029722,58816.0,58813.0,0.1]
[1617395581068,0.9813722,58825.0,58816.0,0.82]
[1617395581268,0.14492744,58824.0,58813.0,0.295]
[1617395581468,0.14692744,58824.0,58814.0,0.2160693]
[1617395581696,0.08064677,58823.0,58815.0,0.175]
[1617395581893,0.08264677,58823.0,58815.0,0.175]
[1617395582094,0.08264677,58823.0,58815.0,0.275]
[1617395582296,0.08066182,58822.0,58816.0,0.15]
[1617395582495,0.08266182,58822.0,58819.0,0.254947]
[1617395582897,0.002,58822.0,58819.0,0.254947]
[1617395583095,0.002,58822.0,58820.0,0.3560693]
[1617395584534,0.004,58827.0,58820.0,0.3560693]
[1617395584735,0.0192,58833.0,58823.0,0.254921]
[1617395584935,0.95693182,58832.0,58823.0,0.586941]
[1617395585135,0.004,58834.0,58823.0,0.586941]
[1617395585336,0.07469733,58831.0,58824.0,0.00300781]
[1617395585539,0.07964682,58833.0,58823.0,0.586941]
[1617395587148,0.163,58830.0,58823.0,0.586941]
[1617395587950,0.004,58834.0,58823.0,0.586941]
[1617395588351,0.0795559,58833.0,58824.0,0.16]
[1617395589149,0.0793559,58833.0,58824.0,0.16]
[1617395589351,0.004,58834.0,58824.0,0.16]
[1617395589576,0.254931,58837.0,58824.0,0.16]
[1617395589777,0.254931,58837.0,58825.0,0.14]
[1617395589975,0.254931,58837.0,58823.0,0.660311]
[1617395591176,0.254931,58837.0,58824.0,0.33013773]
[1617395591374,0.254931,58837.0,58825.0,0.21449558]
[1617395591577,0.004,58838.0,58826.0,0.454904]
[1617395591779,0.9534,58845.0,58826.0,0.556904]
[1617395591978,0.00752301,58836.0,58827.0,0.24800781]
[1617395592193,0.00752301,58836.0,58827.0,0.245]
[1617395592393,0.00752301,58836.0,58827.0,0.24800781]
[1617395592594,0.00752301,58836.0,58828.0,0.215]
[1617395592796,0.00752301,58836.0,58832.0,0.254881]
[1617395593400,0.00752301,58836.0,58832.0,0.46937658]
[1617395594397,0.00752301,58836.0,58832.0,0.254881]
[1617395595426,0.00252301,58836.0,58832.0,0.254881]
[1617395597229,0.9494,58845.0,58832.0,0.254881]
[1617395597462,0.9536,58845.0,58832.0,0.254881]
[1617395597661,1.208474,58845.0,58832.0,0.254881]
[1617395598062,1.208474,58845.0,58833.0,0.21449558]
[1617395598463,0.19,58844.0,58832.0,0.254881]
[1617395598861,0.07895684,58843.0,58832.0,0.47137658]
[1617395599110,0.07895684,58843.0,58832.0,0.256881]
[1617395599711,0.07893934,58844.0,58832.0,0.002]
[1617395599914,0.07894122,58842.0,58832.0,0.21649558]
[1617395600112,0.07897382,58843.0,58832.0,0.21649558]
[1617395600311,0.0789895,58844.0,58832.0,0.21649558]
[1617395600910,0.15,58843.0,58832.0,0.21649558]
[1617395601117,0.404879,58843.0,58832.0,0.21649558]
[1617395601318,0.404879,58843.0,58832.0,0.002]
[1617395601714,0.387972,58842.0,58832.0,0.002]
[1617395601913,0.26,58841.0,58832.0,0.002]
[1617395602112,0.687972,58840.0,58832.0,0.002]
[1617395604119,0.305,58839.0,58832.0,0.002]
[1617395604319,0.387972,58835.0,58832.0,0.002]
[1617395604520,0.387972,58834.0,58832.0,0.002]
[1617395607129,0.382972,58834.0,58832.0,0.002]
[1617395608153,0.387972,58833.0,58832.0,0.002]
[1617395608355,2.107972,58833.0,58832.0,0.002]
[1617395609158,0.387972,58833.0,58832.0,0.002]
[1617395609956,0.27,58837.0,58832.0,0.002]
[1617395610158,0.387957,58836.0,58832.0,0.002]
[1617395610355,0.15,58835.0,58832.0,0.002]
[1617395610566,0.387957,58834.0,58832.0,0.002]
[1617395612967,0.38775695,58834.0,58832.0,0.002]
[1617395616020,1.357957,58833.0,58832.0,0.002]
[1617395616220,0.387957,58833.0,58832.0,0.002]
[1617395616420,0.587957,58833.0,58832.0,0.002]
[1617395616620,0.387957,58833.0,58832.0,0.002]
[1617395617622,1.537957,58833.0,58832.0,0.002]
[1617395618222,0.387957,58833.0,58832.0,0.002]
[1617395622270,0.387957,58833.0,58832.0,0.33591]
[1617395622467,0.254912,58838.0,58832.0,0.33591]
[1617395622667,0.647957,58837.0,58832.0,0.33591]
[1617395622869,0.78541682,58837.0,58832.0,0.33591]
[1617395623069,0.07777594,58836.0,58832.0,0.33591]
[1617395623269,0.387957,58835.0,58832.0,0.33591]
[1617395623468,0.23280166,58834.0,58832.0,0.33591]
[1617395623672,1.407957,58833.0,58832.0,0.33591]
[1617395623894,0.387957,58833.0,58832.0,0.33591]
[1617395624095,0.46575712,58833.0,58832.0,0.33591]
[1617395624693,0.60575712,58833.0,58832.0,0.33091]
[1617395626706,0.60575712,58833.0,58825.0,0.254912]
[1617395626907,0.135,58832.0,58825.0,0.254912]
[1617395627106,0.21277984,58832.0,58825.0,0.254912]
[1617395627307,0.07777741,58831.0,58825.0,0.254912]
[1617395627712,0.004,58835.0,58825.0,0.254912]
[1617395627713,0.07775324,58834.0,58825.0,0.254912]
[1617395628110,0.07769738,58833.0,58825.0,0.254912]
[1617395628710,0.07769319,58834.0,58825.0,0.254912]
[1617395628910,0.07769304,58832.0,58827.0,0.15]
[1617395629173,0.13735504,58837.0,58828.0,0.39951128]
[1617395629374,0.07771463,58831.0,58828.0,0.39438228]
[1617395629572,0.07768506,58838.0,58829.0,0.005125]
[1617395629772,0.07268506,58838.0,58829.0,0.15]
[1617395629970,0.07757292,58830.0,58829.0,0.15]
[1617395630173,0.07756518,58838.0,58829.0,0.15]
[1617395630372,0.07756518,58838.0,58828.0,0.39638228]
[1617395630573,0.07756518,58838.0,58829.0,0.1]
[1617395630975,0.05961556,58840.0,58830.0,0.21449558]
[1617395631176,0.05961556,58840.0,58830.0,0.56300558]
[1617395631375,0.1373651,58840.0,58830.0,0.34851]
[1617395631575,0.325,58839.0,58830.0,0.34851]
[1617395631772,0.07774891,58838.0,58830.0,0.34851]
[1617395632177,0.07774891,58838.0,58833.0,0.254883]
[1617395632379,0.07774891,58838.0,58834.0,0.1]
[1617395632580,0.07780141,58841.0,58835.0,0.21449558]
[1617395632788,0.07781922,58837.0,58835.0,0.21449558]
[1617395632984,0.07781922,58837.0,58836.0,1.250123]
[1617395633181,0.07781778,58840.0,58838.0,0.254856]
[1617395633379,0.87371526,58842.0,58839.0,1.69461158]
[1617395633780,0.87371526,58842.0,58840.0,0.32]
[1617395634383,0.87371526,58842.0,58841.0,1.19228436]
[1617395634788,0.87371526,58842.0,58841.0,1.48728436]
[1617395635386,0.87371526,58842.0,58841.0,0.42728436]
[1617395635585,0.87371526,58842.0,58841.0,0.64032026]
[1617395635787,0.87371526,58842.0,58841.0,0.34532026]
[1617395636391,0.87371526,58842.0,58841.0,2.54532026]
[1617395637007,0.87371526,58842.0,58841.0,2.88532026]
[1617395637209,0.87371526,58842.0,58841.0,3.40532026]
[1617395637409,0.87371526,58842.0,58841.0,1.25532026]
[1617395637609,0.87371526,58842.0,58841.0,0.73532026]
[1617395638408,0.87371526,58842.0,58841.0,2.39132026]
[1617395639006,0.87371526,58842.0,58841.0,2.89132026]
[1617395639211,0.87371526,58842.0,58841.0,3.42632026]
[1617395639409,0.87371526,58842.0,58841.0,2.90952026]
[1617395639640,0.87371526,58842.0,58841.0,2.90976121]
[1617395640039,0.87371526,58842.0,58841.0,3.02892295]
[1617395640645,0.87371526,58842.0,58841.0,3.11045948]
[1617395640839,0.87371526,58842.0,58841.0,3.35045948]
[1617395641444,0.87371526,58842.0,58841.0,3.35725948]
[1617395641640,0.85744989,58842.0,58841.0,3.50809774]
[1617395641839,0.85744989,58842.0,58841.0,2.81209774]
[1617395642040,0.85744989,58842.0,58841.0,2.85209774]
[1617395642263,0.85744989,58842.0,58841.0,2.70209774]
[1617395642666,0.85744989,58842.0,58841.0,2.40209774]
[1617395643065,0.85744989,58842.0,58841.0,3.38529774]
[1617395643464,0.85744989,58842.0,58841.0,3.43529774]
[1617395643663,0.85744989,58842.0,58841.0,2.55209774]
[1617395643865,0.86497143,58842.0,58841.0,3.05209774]
[1617395644306,0.86497143,58842.0,58841.0,3.01209774]
[1617395644505,0.86497143,58842.0,58841.0,2.36209774]
[1617395645511,0.86497143,58842.0,58841.0,0.56728436]
[1617395645713,0.86497143,58842.0,58840.0,0.254853]
[1617395645923,0.86497143,58842.0,58839.0,0.339768]
[1617395646407,0.86497143,58842.0,58840.0,0.23]
[1617395648013,0.86497143,58842.0,58840.0,0.33]
[1617395648612,0.86497143,58842.0,58841.0,0.554818]
[1617395648813,0.86497143,58842.0,58841.0,1.289818]
[1617395649211,0.86497143,58842.0,58841.0,2.249818]
[1617395649614,0.86497143,58842.0,58841.0,2.339818]
[1617395650242,0.86497143,58842.0,58841.0,2.839818]
[1617395650642,0.86497143,58842.0,58841.0,2.339818]
[1617395651242,0.86497143,58842.0,58841.0,1.379818]
[1617395651643,0.86497143,58842.0,58841.0,1.339818]
[1617395651843,0.86497143,58842.0,58841.0,1.874818]
[1617395652243,0.86497143,58842.0,58841.0,2.654818]
[1617395652661,0.86497143,58842.0,58841.0,2.73104183]
[1617395653262,0.86497143,58842.0,58841.0,3.21104183]
[1617395654065,0.86497143,58842.0,58841.0,4.19448278]